bitfinex-derivatives/quotes_ETHF0:USTF0_20250224
["timestamp","ask_amount","ask_price","bid_price","bid_amount"]
[1740420973303,1.1205,2670.1,2669.6,4.85871]
[1740420973503,0.74902,2669.9,2669.8,0.74901]
[1740420973904,0.74902,2669.8,2669.7,2.985]
[1740420974802,3.2078,2670.4,2669.7,6.1928]
[1740420975104,0.5632,2670.3,2669.7,2.985]
[1740420975308,0.74897,2670.0,2669.9,0.74897]
[1740420975610,0.74896,2670.1,2670.0,0.74896]
[1740420975810,3.2078,2670.8,2670.7,0.74877]
[1740420976502,3.2078,2670.8,2670.7,41.54877]
[1740420976703,3.2078,2670.8,2670.5,0.0056243]
[1740420976910,0.7488,2670.7,2670.6,0.74879]
[1740420977206,0.7488,2670.6,2670.5,0.0056243]
[1740420977509,0.7488,2670.6,2670.5,0.7544543]
[1740420977710,0.7488,2670.6,2670.5,0.0056243]
[1740420978800,0.7488,2670.6,2670.5,0.7544543]
[1740420979006,3.2078,2670.8,2670.7,0.74877]
[1740420979208,3.2078,2671.1,2671.0,0.74869]
[1740420979407,0.74871,2671.0,2670.9,0.7487]
[1740420979607,3.95647,2671.1,2671.0,0.74869]
[1740420980306,0.74874,2670.9,2670.8,0.74873]
[1740420980605,0.74871,2671.0,2670.9,0.74871]
[1740420980911,1.0684,2671.2,2671.1,0.74866]
[1740420981106,1.81703,2671.2,2671.1,0.74866]
[1740420981306,0.5321,2671.2,2671.1,0.74866]
[1740420981811,0.74859,2671.4,2671.3,0.7486]
[1740420982207,3.7496,2671.6,2670.9,2.984]
[1740420982413,0.74856,2671.5,2671.4,0.74855]
[1740420982805,0.74858,2671.4,2671.3,2.984]
[1740420983208,0.74858,2671.4,2671.3,3.7326]
[1740420983710,3.7496,2671.6,2671.3,2.984]
[1740420983913,4.49814,2671.6,2671.5,0.74855]
[1740420984307,4.49812,2671.6,2671.5,0.74855]
[1740420984508,3.7496,2671.6,2671.3,2.984]
[1740420984707,0.74858,2671.4,2671.3,2.984]
[1740420985113,0.74858,2671.4,2671.3,3.7326]
[1740420985414,0.74857,2671.5,2671.4,0.74857]
[1740420985803,3.2078,2672.1,2672.0,0.74841]
[1740420986514,0.74846,2671.8,2671.7,2.983]
[1740420986815,0.74852,2671.6,2671.5,1.29564]
[1740420987009,0.74851,2671.7,2671.6,0.74851]
[1740420987208,5.07881,2672.1,2671.5,0.5471]
[1740420987209,3.2078,2672.1,2671.5,0.5471]
[1740420987405,0.74852,2671.7,2671.6,0.74851]
[1740420987915,0.74845,2671.9,2671.8,0.74844]
[1740420988211,3.2078,2672.1,2672.0,0.74841]
[1740420988713,3.95618,2672.1,2672.0,0.74841]
[1740420988903,1.1386,2672.3,2672.2,0.74835]
[1740420989411,1.87054,2672.7,2672.0,0.00561356]
[1740420989611,0.74838,2672.1,2672.0,0.75400356]
[1740420989906,0.74838,2672.1,2672.0,0.00561356]
[1740420991916,3.73038,2672.1,2672.0,0.00561356]
[1740420992119,0.74855,2671.5,2671.4,3.73156]
[1740420992413,0.74855,2671.5,2671.4,2.983]
[1740420992910,3.2078,2671.7,2671.3,0.74858]
[1740420993111,3.2078,2671.4,2671.1,2.982]
[1740420993410,0.74863,2671.2,2671.1,2.982]
[1740420993613,0.74866,2671.1,2671.0,0.75429356]
[1740420993817,0.74866,2671.1,2671.0,0.00561356]
[1740420994615,4.33176,2671.1,2671.0,0.00561356]
[1740420995217,3.5831,2671.1,2670.2,44.9187]
[1740420995414,0.74888,2670.3,2670.2,41.9367]
[1740420995719,0.74891,2670.2,2670.1,6.1898]
[1740420995916,0.74891,2670.2,2670.1,2.982]
[1740420996111,0.74891,2670.2,2670.1,43.782]
[1740420996316,0.7489,2670.3,2670.2,0.74891]
[1740420996719,0.74891,2670.2,2670.1,3.73093]
[1740420996918,0.74891,2670.2,2670.1,2.982]
[1740420997216,0.00561356,2670.4,2670.0,40.8]
[1740420997720,0.74894,2670.1,2670.0,40.8]
[1740420999327,3.2078,2670.2,2669.9,0.00561356]
[1740420999625,0.74897,2670.0,2669.9,0.00561356]
[1740421002221,3.2078,2670.2,2669.9,0.00561356]
[1740421002621,3.2078,2670.2,2670.1,0.74894]
[1740421003217,3.2078,2670.2,2669.9,0.54161356]
[1740421003426,0.74897,2670.0,2669.9,1.29059356]
[1740421003627,0.74897,2670.0,2669.9,0.00561356]
[1740421006430,6.74897,2670.0,2669.9,3.56e-06]
[1740421007129,7.33467,2670.0,2669.9,3.56e-06]
[1740421007933,7.70997,2670.0,2669.9,3.56e-06]
[1740421008831,1.70997,2670.0,2669.9,3.56e-06]
[1740421009240,0.961,2670.0,2669.9,3.56e-06]
[1740421010927,0.5857,2670.0,2669.9,3.56e-06]
[1740421011127,3.5687,2670.0,2669.9,3.56e-06]
[1740421012634,3.9437,2670.0,2669.9,3.56e-06]
[1740421013022,9.9437,2670.0,2669.9,3.56e-06]
[1740421013334,10.00434081,2670.0,2669.9,3.56e-06]
[1740421014232,9.9437,2670.0,2669.9,3.56e-06]
[1740421014434,10.00432325,2670.0,2669.9,3.56e-06]
[1740421014730,10.00432391,2670.0,2669.9,3.56e-06]
[1740421015034,3.9437,2670.0,2669.9,3.56e-06]
[1740421015831,9.62932282,2670.0,2669.9,3.56e-06]
[1740421016026,10.00432282,2670.0,2669.9,3.56e-06]
[1740421018132,10.0043075,2670.0,2669.9,3.56e-06]
[1740421019435,10.00431961,2670.0,2669.9,3.56e-06]
[1740421021032,10.0043222,2670.0,2669.9,3.56e-06]
[1740421021835,10.0043222,2670.0,2668.7,1.0754]
[1740421022033,3.2078,2669.0,2668.7,1.0754]
[1740421023638,3.5828,2669.0,2668.7,1.0754]
[1740421023930,0.375,2668.8,2668.6,0.00561356]
[1740421024131,3.2078,2668.7,2668.6,0.00561356]
[1740421024934,3.5828,2668.7,2668.6,0.00561356]
[1740421025129,3.2078,2668.7,2668.6,0.00561356]
[1740421026134,3.5828,2668.7,2668.6,3.56e-06]
[1740421026335,4.21244003,2668.7,2668.6,3.56e-06]
[1740421026636,10.21244003,2668.7,2668.6,3.56e-06]
[1740421027333,3.7768,2668.7,2668.6,3.56e-06]
[1740421027933,0.00561356,2669.0,2668.6,3.56e-06]
[1740421027934,2.984,2668.9,2668.6,3.56e-06]
[1740421028135,3.21341356,2669.0,2668.6,3.56e-06]
[1740421028335,3.21341356,2669.0,2668.7,2.984]
[1740421028533,3.2078,2669.6,2668.9,3.2078]
[1740421028835,3.2078,2669.6,2669.0,0.5799]
[1740421029037,3.2078,2669.6,2669.2,3.2078]
[1740421029235,3.2078,2669.6,2669.2,5.38750379]
[1740421029435,3.21111544,2670.0,2669.2,5.38750379]
[1740421029637,3.21111544,2670.0,2669.2,3.51456379]
[1740421029838,0.38061356,2669.9,2669.3,0.74915]
[1740421030142,2.25314356,2669.9,2669.2,3.51456379]
[1740421030343,0.74909,2669.6,2669.4,0.74912]
[1740421030539,0.00561356,2669.9,2669.5,2.984]
[1740421030732,0.00561356,2669.9,2669.6,1.1327]
[1740421030937,0.74905,2669.7,2669.6,1.1327]
[1740421031944,0.00561356,2669.9,2669.6,1.7227]
[1740421032147,3.21111544,2670.0,2669.9,0.749]
[1740421032338,3.21111544,2670.0,2669.9,3.733]
[1740421032741,3.2078,2670.4,2669.9,2.984]
[1740421032945,0.74893,2670.2,2670.0,0.74896]
[1740421033142,0.74894,2670.1,2669.9,2.984]
[1740421033344,0.74896,2670.1,2669.9,3.73298]
[1740421033740,3.21341356,2670.4,2669.9,2.984]
[1740421033947,0.74896,2670.1,2670.0,0.74896]
[1740421035147,0.74894,2670.1,2670.0,2.984]
[1740421035349,0.74894,2670.1,2670.0,3.73297]
[1740421035545,3.21341356,2670.4,2670.0,2.984]
[1740421035746,0.74894,2670.1,2670.0,3.73296]
[1740421035945,0.74894,2670.1,2670.0,2.984]
[1740421036140,0.74894,2670.1,2670.0,3.73297]
[1740421036538,0.74894,2670.1,2670.0,2.984]
[1740421037050,0.74894,2670.1,2669.8,3.21341356]
[1740421037051,0.749,2669.9,2669.8,0.00561356]
[1740421037252,0.749,2669.9,2669.8,2.98961356]
[1740421040244,0.749,2669.9,2669.8,0.00561356]
[1740421040439,3.2078,2670.1,2669.8,0.00561356]
[1740421040440,6.1908,2670.1,2669.8,0.00561356]
[1740421040650,0.749,2669.9,2669.8,0.00561356]
[1740421041954,3.732,2669.9,2669.8,0.00561356]
[1740421043857,3.732,2669.9,2669.8,3.56e-06]
[1740421044256,3.04358945,2669.9,2669.8,3.56e-06]
[1740421044856,2.983,2669.9,2669.8,3.56e-06]
[1740421046556,3.04361689,2669.9,2669.8,3.56e-06]
[1740421047256,2.983,2669.9,2669.8,3.56e-06]
[1740421047451,3.04358193,2669.9,2669.8,3.56e-06]
[1740421047859,0.06058193,2669.9,2669.8,3.56e-06]
[1740421048061,6.7521,2670.1,2669.8,3.56e-06]
[1740421048256,0.06058247,2670.0,2669.8,3.56e-06]
[1740421049455,6.7521,2670.1,2669.8,3.56e-06]
[1740421053256,3.7691,2670.1,2669.8,3.56e-06]
[1740421053659,3.2078,2670.1,2669.8,3.56e-06]
[1740421053860,3.2078,2670.1,2669.8,1.14950356]
[1740421054057,3.2078,2670.1,2669.8,1.71130356]
[1740421054265,3.2078,2670.1,2670.0,0.74897]
[1740421055053,3.2078,2670.1,2669.8,1.71130356]
[1740421055257,3.2078,2670.1,2669.9,0.74897]
[1740421055258,0.74899,2670.0,2669.9,0.74897]
[1740421056165,0.749,2669.9,2669.8,2.46031356]
[1740421056365,0.749,2669.9,2669.8,1.14950356]
[1740421056862,3.2078,2670.1,2670.0,0.74897]
[1740421057265,3.2078,2670.1,2669.8,1.14950356]
[1740421057457,3.2078,2670.1,2670.0,0.74897]
[1740421057663,0.00561356,2670.4,2670.3,0.74888]
[1740421058061,0.75447356,2670.4,2670.3,0.74888]
[1740421058661,0.7489,2670.3,2670.2,0.74889]
[1740421059259,0.00561356,2670.4,2670.1,3.5385]
[1740421059458,0.00561356,2670.4,2670.3,0.74888]
[1740421059663,0.75447356,2670.4,2670.3,0.74888]
[1740421060059,0.74891,2670.3,2670.2,0.74891]
[1740421060254,0.7489,2670.3,2670.2,0.74889]
[1740421060460,0.74891,2670.2,2670.1,4.28742]
[1740421061172,0.74889,2670.3,2670.2,0.74889]
[1740421061461,0.74888,2670.3,2670.1,4.28741]
[1740421061666,0.749,2669.9,2669.8,1.89851356]
[1740421061867,0.749,2669.9,2669.8,4.88151356]
[1740421062063,0.749,2669.9,2669.8,1.14950356]
[1740421063165,0.749,2669.9,2669.8,1.89852356]
[1740421064170,0.749,2669.9,2669.8,1.14950356]
[1740421064769,3.9568,2669.9,2669.8,3.56e-06]
[1740421065865,6.9398,2669.9,2669.8,3.56e-06]
[1740421069279,6.1908,2669.9,2669.8,3.56e-06]
[1740421070179,6.5658,2669.9,2669.8,3.56e-06]
[1740421070377,6.1908,2669.9,2669.8,3.56e-06]
[1740421071284,3.2078,2669.9,2669.8,3.56e-06]
[1740421071494,3.9568,2669.9,2669.8,3.56e-06]
[1740421073187,3.2078,2669.9,2669.8,3.56e-06]
[1740421073479,3.2078,2670.2,2669.8,0.74902356]
[1740421073684,0.74896,2670.1,2670.0,0.74895]
[1740421073888,3.2078,2670.2,2669.8,3.56e-06]
[1740421074084,0.00561356,2670.4,2670.3,0.74888]
[1740421074783,0.75447356,2670.4,2670.3,0.74888]
[1740421075284,0.00561356,2670.4,2670.2,1.1263]
[1740421075582,0.74888,2670.3,2670.2,1.87521]
[1740421075787,0.75448356,2670.4,2670.3,0.74888]
[1740421076186,0.00561356,2670.4,2670.3,0.74888]
[1740421077285,0.00561356,2670.4,2670.3,2.983]
[1740421077585,0.75448356,2670.4,2670.3,2.983]
[1740421077785,0.74888,2670.3,2670.2,4.1093]
[1740421077984,0.74888,2670.3,2670.2,4.85821]
[1740421078584,0.74888,2670.3,2670.2,4.30571]
[1740421079290,0.74888,2670.3,2670.2,3.5568]
[1740421079483,0.74888,2670.3,2670.2,4.30571]
[1740421079883,0.74888,2670.3,2670.2,2.983]
[1740421080083,0.74891,2670.2,2670.1,1.32683]
[1740421080586,0.74891,2670.2,2670.1,0.5779]
[1740421080986,0.74891,2670.2,2670.1,1.32682]
[1740421081190,0.00561356,2670.4,2670.1,0.5779]
[1740421082689,3.2078,2671.4,2670.1,9.7857]
[1740421082988,0.5514,2671.5,2670.9,3.2078]
[1740421083183,0.5514,2671.5,2671.1,1.87166]
[1740421083387,1.29995,2671.5,2671.4,0.74858]
[1740421083784,0.7486,2671.4,2671.3,0.74859]
[1740421084793,0.5514,2671.5,2671.4,0.74858]
[1740421084992,0.5514,2671.5,2671.2,0.00561356]
[1740421085193,0.7486,2671.3,2671.2,0.75423356]
[1740421085791,3.21341356,2671.7,2671.2,0.00561356]
[1740421085993,0.00561356,2671.7,2671.6,0.74852]
[1740421087588,0.74852,2671.6,2671.5,3.73054]
[1740421087793,0.74852,2671.6,2671.5,2.982]
[1740421088090,0.00561356,2671.7,2671.5,2.982]
[1740421088298,0.75410356,2671.7,2671.6,0.74852]
[1740421088887,0.74852,2671.6,2671.5,2.982]
[1740421089394,0.7486,2671.3,2671.2,0.00561356]
[1740421089587,3.9564,2671.3,2671.2,0.00561356]
[1740421090486,3.2078,2671.3,2671.2,0.75424356]
[1740421091895,0.00561356,2671.7,2671.6,0.74852]
[1740421092100,0.74855,2671.6,2671.5,0.74852]
[1740421092701,0.00561356,2671.7,2671.3,1.1429]
[1740421093003,0.74858,2671.4,2671.3,1.89149]
[1740421093195,3.2078,2671.5,2671.3,1.1429]
[1740421093397,0.74858,2671.4,2671.3,1.1429]
[1740421093596,3.95636,2671.5,2671.4,0.74858]
[1740421093899,0.74858,2671.4,2671.3,1.89148]
[1740421094301,0.74858,2671.4,2671.3,1.8915]
[1740421095197,3.2078,2671.5,2671.3,1.1429]
[1740421099703,3.2078,2671.5,2671.3,41.9429]
[1740421101097,3.2078,2671.5,2671.3,1.1429]
[1740421101303,3.2078,2671.5,2671.2,2.98661356]
[1740421101495,1.1126,2671.4,2671.2,2.98661356]
[1740421101695,1.1126,2671.4,2671.2,0.00561356]
[1740421102595,0.562,2671.3,2671.2,0.00561356]
[1740421102992,0.937,2671.3,2671.2,0.00561356]
[1740421104300,1.1126,2671.4,2671.2,0.00561356]
[1740421104501,1.1126,2671.4,2671.2,2.98661356]
[1740421105299,1.1126,2671.4,2671.2,6.19441356]
[1740421105498,0.00561356,2671.7,2671.3,1.1208]
[1740421105705,3.2078,2672.3,2671.4,0.5599]
[1740421105900,3.2078,2672.0,2671.4,0.5599]
[1740421106106,3.2078,2672.0,2671.6,0.74852]
[1740421106310,0.74852,2671.6,2671.5,44.52953]
[1740421106804,0.74858,2671.4,2671.3,1.1208]
[1740421107005,0.74858,2671.4,2671.3,0.567]
[1740421107208,0.7486,2671.3,2671.2,0.00561356]
[1740421109909,0.74855,2671.5,2671.4,0.74856]
[1740421110701,1.1126,2671.6,2671.2,0.00561356]
[1740421111213,0.74856,2671.5,2671.4,0.74857]
[1740421111710,0.74859,2671.4,2671.3,0.74859]
[1740421112013,0.74856,2671.5,2671.4,0.74857]
[1740421112310,1.1126,2671.6,2671.2,0.00561356]
[1740421112311,0.74858,2671.4,2671.2,0.00561356]
[1740421112514,0.7486,2671.3,2671.2,0.75423356]
[1740421113314,0.7486,2671.3,2671.2,0.00561356]
[1740421113714,1.2902,2671.3,2671.2,0.00561356]
[1740421114117,0.74877,2670.7,2670.6,43.781]
[1740421114311,3.95657,2670.7,2670.6,43.781]
[1740421114506,3.2078,2671.0,2670.6,40.8]
[1740421114811,0.74874,2670.9,2670.7,0.74875]
[1740421115011,4.51151,2671.0,2670.6,40.8]
[1740421115212,4.51151,2671.0,2670.9,0.74872]
[1740421115709,3.2078,2671.0,2670.9,0.74872]
[1740421115911,3.2078,2671.4,2671.3,0.7486]
[1740421116111,3.2078,2671.4,2671.1,0.5714]
[1740421116413,3.2078,2671.4,2671.2,0.5406]
[1740421117511,3.2078,2671.4,2670.7,3.2078]
[1740421117708,3.2078,2671.1,2670.6,41.9056]
[1740421117910,0.5617,2671.0,2670.6,41.9056]
[1740421118111,0.5617,2671.0,2670.6,3.5182]
[1740421118311,0.5907,2670.9,2670.6,3.5182]
[1740421118813,0.5907,2670.9,2670.6,0.5342]
[1740421119119,3.2078,2670.7,2670.5,0.00561356]
[1740421120121,0.7488,2670.6,2670.5,0.00561356]
[1740421120411,0.7488,2670.6,2669.8,0.5342]
[1740421120412,0.06077085,2670.6,2669.8,0.5342]
[1740421120611,0.74892,2670.2,2669.8,0.5342]
[1740421120813,3.95672,2670.2,2669.8,0.5342]
[1740421121016,3.2078,2670.2,2670.1,0.74894]
[1740421121411,3.2078,2670.7,2670.1,3.2078]
[1740421121606,3.2078,2670.7,2670.3,0.74887]
[1740421121808,0.5643,2670.6,2670.2,1.1049]
[1740421122014,3.21341356,2670.7,2670.6,0.7488]
[1740421122221,3.96218356,2670.7,2670.3,0.5612]
[1740421122421,3.96218356,2670.7,2670.5,0.74881]
[1740421122721,3.21341356,2670.7,2670.5,0.74881]
[1740421122913,3.96221356,2670.7,2670.5,0.74881]
[1740421123312,3.96221356,2670.7,2670.3,0.5612]
[1740421123313,3.21341356,2670.7,2670.3,0.5612]
[1740421123519,0.74888,2670.3,2670.2,0.5582]
[1740421124615,0.74891,2670.2,2670.1,2.988]
[1740421124818,0.74897,2670.0,2669.9,1.15251356]
[1740421125015,0.74897,2670.0,2669.9,4.88651356]
[1740421125319,0.74897,2670.0,2669.9,4.13751356]
[1740421125821,0.74896,2670.1,2669.9,4.88651356]
[1740421126121,0.74895,2670.1,2669.9,4.13751356]
[1740421126322,0.5622,2670.2,2669.9,4.13751356]
[1740421126518,3.95677,2670.0,2669.9,1.15251356]
[1740421126720,3.95677,2670.0,2669.9,0.00561356]
[1740421128217,3.2078,2670.0,2669.9,0.75461356]
[1740421128524,3.95677,2670.0,2669.9,0.75461356]
[1740421129017,3.2078,2670.0,2669.9,0.75461356]
[1740421129216,3.95677,2670.0,2669.9,0.75461356]
[1740421129614,3.95677,2670.0,2669.9,0.00561356]
[1740421131521,3.2078,2670.0,2669.9,0.75461356]
[1740421131827,3.95677,2670.0,2669.9,0.00561356]
[1740421134225,3.2078,2670.0,2669.9,0.00561356]
[1740421141336,3.5828,2670.0,2669.9,0.00561356]
[1740421145432,3.2078,2670.0,2669.9,0.00561356]
[1740421145830,0.5622,2670.2,2669.9,0.00561356]
[1740421146030,0.5622,2670.2,2670.0,2.982]
[1740421146235,3.2078,2670.6,2670.0,4.1393]
[1740421146429,4.3139,2670.6,2670.0,4.1393]
[1740421147230,4.6889,2670.6,2670.0,4.1393]
[1740421147435,3.2078,2670.2,2669.9,0.00561356]
[1740421147629,1.0961,2670.1,2669.9,0.00561356]
[1740421148833,0.5723,2670.0,2669.9,0.00561356]
[1740421149434,0.9473,2670.0,2669.9,0.00561356]
[1740421150039,0.9473,2670.0,2669.2,3.5274]
[1740421150240,0.74917,2669.3,2669.2,0.5454]
[1740421150440,0.74914,2669.4,2669.3,0.74915]
[1740421150641,0.74912,2669.5,2669.4,0.74913]
[1740421150845,3.2078,2669.7,2669.2,0.5454]
[1740421151140,0.74911,2669.5,2669.4,0.74911]
[1740421151737,0.74915,2669.4,2669.3,0.74916]
[1740421151936,0.74917,2669.3,2669.2,1.30019356]
[1740421152340,1.87271,2669.6,2669.2,1.30019356]
[1740421152534,3.2078,2669.4,2669.2,0.00561356]
[1740421152941,0.74917,2669.3,2669.2,0.00561356]
[1740421153243,0.74917,2669.3,2669.2,0.75480356]
[1740421153441,0.74917,2669.3,2669.2,0.00561356]
[1740421153739,0.74917,2669.3,2669.2,0.75480356]
[1740421153934,3.7771,2669.4,2669.2,0.00561356]
[1740421154141,0.74917,2669.3,2669.2,0.75479356]
[1740421154333,3.2078,2669.4,2669.3,0.74917]
[1740421154533,0.74917,2669.3,2669.2,0.00561356]
[1740421155038,3.2078,2669.4,2669.2,0.00561356]
[1740421155239,0.74917,2669.3,2669.2,0.00561356]
[1740421156138,0.74917,2669.3,2669.2,0.75480356]
[1740421156534,0.74917,2669.3,2669.2,0.00561356]
[1740421156941,1.28967,2669.3,2669.2,0.00561356]
[1740421157139,0.5405,2669.3,2669.2,0.00561356]
[1740421158643,0.60121979,2669.3,2668.4,0.5841]
[1740421158845,3.2078,2668.7,2668.4,0.5841]
[1740421159445,0.5649,2668.6,2668.4,0.5841]
[1740421159942,0.5649,2668.6,2668.3,0.55241356]
[1740421162547,0.5649,2668.6,2668.3,0.00561356]
[1740421163149,2.43832,2668.6,2668.3,0.00561356]
[1740421163348,0.74942,2668.4,2668.3,0.00561356]
[1740421163547,3.95722,2668.4,2668.3,0.00561356]
[1740421163843,3.95722,2668.4,2667.8,0.74958]
[1740421163844,0.74957,2667.9,2667.8,0.74958]
[1740421164243,1.1314,2668.2,2667.6,44.91]
[1740421164450,0.5872,2668.1,2667.6,44.91]
[1740421164645,3.795,2668.1,2667.6,1.127]
[1740421164950,3.2078,2667.8,2667.6,0.00378529]
[1740421165146,0.74961,2667.7,2667.6,0.00378529]
[1740421166043,1.30241,2667.7,2667.6,0.00378529]
[1740421166346,1.87411,2667.6,2667.0,0.74979]
[1740421166549,0.74978,2667.1,2667.0,0.74979]
[1740421166743,0.74981,2667.1,2666.8,1.1195]
[1740421166944,0.74982,2667.0,2666.8,1.1195]
[1740421167351,3.2078,2667.1,2666.8,1.1195]
[1740421167648,3.2078,2667.1,2666.8,1.86936]
[1740421167853,3.2078,2667.1,2667.0,0.74981]
[1740421168155,3.95759,2667.1,2666.8,1.1195]
[1740421168350,3.95759,2667.1,2666.9,0.74983]
[1740421168550,0.74981,2667.0,2666.9,0.74983]
[1740421168745,0.74982,2667.0,2666.9,0.74983]
[1740421169048,0.74982,2667.0,2666.9,41.54982]
[1740421169649,3.2078,2667.1,2666.9,40.8]
[1740421169855,0.00562419,2667.2,2667.1,0.74978]
[1740421170663,0.00562419,2667.2,2667.1,41.54978]
[1740421171164,0.00562419,2667.2,2667.1,44.53578]
[1740421173169,0.75538419,2667.2,2667.1,44.53578]
[1740421173371,0.75538419,2667.2,2667.1,40.8]
[1740421173568,0.74711026,2666.9,2666.8,8.06314]
[1740421173766,0.74711026,2666.9,2666.8,1.86934]
[1740421174068,0.74711026,2666.9,2666.8,42.66934]
[1740421174571,0.00562419,2667.2,2666.4,3.2078]
[1740421174767,0.74989,2666.8,2666.7,0.74988]
[1740421174967,3.95763,2667.0,2666.9,0.74984]
[1740421175168,3.2078,2667.0,2666.5,40.8]
[1740421175668,0.5685,2667.1,2666.5,44.0078]
[1740421175971,0.00562419,2667.2,2666.8,3.2078]
[1740421176173,0.00562419,2667.2,2666.9,3.5563]
[1740421176375,0.00562419,2667.2,2667.0,0.566]
[1740421176671,4.8765,2668.1,2667.1,3.2078]
[1740421177072,3.2078,2667.8,2667.0,0.566]
[1740421177273,1.87396,2667.9,2667.0,0.566]
[1740421177467,4.8765,2668.1,2667.1,3.2078]
[1740421177668,0.74961,2667.8,2667.7,0.74959]
[1740421178071,0.00562419,2668.0,2667.5,0.00562419]
[1740421178269,3.2078,2667.8,2667.5,0.75528419]
[1740421178474,0.74962,2667.7,2667.6,0.74961]
[1740421179177,0.74964,2667.6,2667.5,0.00562419]
[1740421179374,0.74964,2667.6,2667.5,0.75529419]
[1740421179572,3.2078,2667.8,2667.5,0.00562419]
[1740421179771,3.2078,2667.8,2667.7,0.74961]
[1740421179971,0.00562419,2668.0,2667.9,0.74956]
[1740421180174,3.2078,2668.6,2668.5,0.74939]
[1740421181075,3.95716,2668.6,2668.5,0.74939]
[1740421181275,3.2078,2668.6,2668.5,0.74939]
[1740421182276,2.41224419,2668.8,2668.3,3.002]
[1740421182277,0.00562419,2668.8,2668.7,0.74933]
[1740421182684,0.00562419,2668.8,2668.7,3.75033]
[1740421183383,0.00562419,2668.8,2668.7,6.95813]
[1740421185683,3.2078,2669.4,2668.7,6.2088]
[1740421185880,0.5593,2669.7,2669.6,0.74908]
[1740421186086,1.32948,2670.0,2669.8,0.74901]
[1740421186290,1.32948,2670.0,2669.4,3.001]
[1740421186490,0.5805,2670.0,2669.9,0.749]
[1740421186690,3.2078,2670.1,2670.0,0.74897]
[1740421188084,3.95675,2670.1,2669.9,0.74898]
[1740421188484,3.2078,2670.1,2669.8,3.002]
[1740421188881,3.95674,2670.1,2669.9,0.74898]
[1740421189191,3.2078,2670.1,2670.0,0.74897]
[1740421191486,0.00562419,2670.2,2670.1,0.74894]
[1740421201090,4.19e-06,2670.2,2670.1,3.95674]
[1740421201287,1.1296,2671.1,2671.0,0.74869]
[1740421201690,1.87826,2671.1,2671.0,0.74869]
[1740421201891,1.1296,2671.1,2671.0,0.74869]
[1740421202090,1.1296,2671.1,2670.7,2.985]
[1740421202686,3.2078,2670.9,2670.7,2.985]
[1740421202999,0.00562419,2671.2,2670.8,3.2078]
[1740421203198,0.00562419,2671.2,2670.9,0.74872]
[1740421203400,0.00562419,2671.2,2671.1,0.74866]
[1740421203598,0.00562419,2671.2,2671.0,0.74866]
[1740421203599,0.74868,2671.1,2671.0,0.74866]
[1740421204295,0.00562419,2671.2,2671.1,0.74866]
[1740421204491,0.00562419,2671.2,2671.1,3.73366]
[1740421206000,0.75425419,2671.2,2671.1,3.73366]
[1740421206192,0.00562419,2671.2,2671.1,3.73366]
[1740421206393,0.75425419,2671.2,2671.1,3.73366]
[1740421206894,0.00562419,2671.2,2671.1,3.73366]
[1740421207096,0.00562419,2671.2,2671.1,2.985]
[1740421208195,0.00562419,2671.2,2670.7,2.982]
[1740421210899,3.2078,2671.0,2670.8,2.982]
[1740421211098,3.2078,2671.0,2670.6,0.00562419]
[1740421211506,3.2078,2671.0,2670.7,2.982]
[1740421211901,3.2078,2671.0,2670.6,0.00562419]
[1740421212599,3.2078,2670.7,2670.6,0.00562419]
[1740421213195,4.0815,2671.1,2670.6,0.00562419]
[1740421213507,1.0995,2671.1,2670.6,0.00562419]
[1740421213701,3.2078,2670.9,2670.6,0.00562419]
[1740421214902,1.0995,2671.1,2670.6,0.00562419]
[1740421215511,0.00562419,2671.2,2670.6,3.21342419]
[1740421215713,0.00562419,2671.2,2670.7,0.5349]
[1740421216006,0.00562419,2671.2,2670.8,43.787]
[1740421216207,0.00562419,2671.2,2670.9,5.07959]
[1740421216414,0.00562419,2671.2,2671.1,0.74866]
[1740421218213,3.21342419,2671.2,2671.1,2.997]
[1740421218514,3.96205419,2671.2,2671.1,2.997]
[1740421218713,0.00562419,2671.2,2670.6,3.55222419]
[1740421218915,0.5707,2671.1,2670.6,3.55222419]
[1740421219117,0.74874,2670.9,2670.8,0.74873]
[1740421220021,0.5707,2671.1,2670.6,3.55222419]
[1740421220322,0.74876,2670.8,2670.7,0.74876]
[1740421221023,3.2078,2670.9,2670.8,0.74874]
[1740421222622,3.2078,2670.9,2670.6,3.55222419]
[1740421223125,0.00562419,2671.2,2670.7,1.87194]
[1740421223328,0.75428419,2671.2,2671.1,0.74866]
[1740421223527,0.00562419,2671.2,2671.1,3.74166]
[1740421223827,0.75425419,2671.2,2671.1,3.74166]
[1740421224127,0.00562419,2671.2,2671.1,2.993]
[1740421225623,0.00562419,2671.2,2671.1,3.44942172]
[1740421226016,0.00562419,2671.2,2671.1,2.993]
[1740421226226,0.00562419,2671.2,2670.8,2.995]
[1740421226414,0.54252419,2671.2,2670.8,2.995]
[1740421227116,1.08972419,2671.2,2670.8,2.995]
[1740421227317,1.08972419,2671.2,2670.7,40.8]
[1740421227529,3.2078,2671.0,2670.6,0.55222419]
[1740421227726,0.5881,2670.9,2670.6,0.55222419]
[1740421229028,0.5881,2670.9,2670.7,0.45689765]
[1740421230022,0.5881,2670.9,2670.6,0.55222419]
[1740421233323,3.2078,2670.7,2670.6,0.00562419]
[1740421233729,3.5828,2670.7,2670.6,0.00562419]
[1740421233930,3.2078,2670.7,2670.6,0.00562419]
[1740421234132,0.375,2670.6,2669.8,6.1968]
[1740421234429,3.2078,2670.2,2669.9,0.45702323]
[1740421234922,3.2078,2670.2,2669.7,64.562]
[1740421235330,3.2078,2670.2,2669.7,64.56762419]
[1740421237328,0.5549,2670.4,2669.9,3.2078]
[1740421237525,0.5509,2670.5,2669.9,3.2078]
[1740421237724,0.5509,2670.5,2669.7,64.56762419]
[1740421237931,1.1058,2670.5,2669.7,64.56762419]